[Event "Titled Tuesday Blitz August 22 Early 2023"]
[White "Esipenko, Andrey"]
[Black "Zhigalko, Sergei"]
[WhiteFideId "24175439"]
[BlackFideId "13502956"]
[WhiteElo "2985"]
[BlackElo "2950"]
[Result "1-0"]
[Round "10"]
[TimeControl "180+1"]
[Date "2023.08.22"]
[WhiteClock "0:00:02"]
[BlackClock "0:00:00"]
[Board "3"]

1. Nf3 {[%clk 0:02:59]}  d5 {[%clk 0:03:00]} 2. g3 {[%clk 0:02:59]}  c6 {[%clk 0:03:00]} 3. Bg2 {[%clk 0:02:59]}  Bg4 {[%clk 0:03:00]} 4. O-O {[%clk 0:02:59]}  e6 {[%clk 0:03:00]} 5. d3 {[%clk 0:02:56]}  Bd6 {[%clk 0:02:59]} 6. Nbd2 {[%clk 0:02:50]}  Ne7 {[%clk 0:02:58]} 7. h3 {[%clk 0:02:49]}  Bh5 {[%clk 0:02:58]} 8. e4 {[%clk 0:02:47]}  O-O {[%clk 0:02:57]} 9. Qe1 {[%clk 0:02:45]}  a5 {[%clk 0:02:55]} 10. Nh4 {[%clk 0:02:22]}  Ng6 {[%clk 0:02:10]} 11. Ndf3 {[%clk 0:02:20]}  Nd7 {[%clk 0:01:54]} 12. Nxg6 {[%clk 0:01:52]}  Bxg6 {[%clk 0:01:52]} 13. Nh4 {[%clk 0:01:43]}  Be7 {[%clk 0:01:41]} 14. Nxg6 {[%clk 0:01:35]}  hxg6 {[%clk 0:01:41]} 15. f4 {[%clk 0:01:32]}  a4 {[%clk 0:01:41]} 16. a3 {[%clk 0:01:33]}  Qb6+ {[%clk 0:01:32]} 17. Kh2 {[%clk 0:01:32]}  Rfe8 {[%clk 0:01:30]} 18. e5 {[%clk 0:01:19]}  Rac8 {[%clk 0:00:51]} 19. Qe2 {[%clk 0:01:15]}  Qc7 {[%clk 0:00:39]} 20. h4 {[%clk 0:01:11]}  b5 {[%clk 0:00:28]} 21. Bf3 {[%clk 0:00:56]}  c5 {[%clk 0:00:23]} 22. Kg2 {[%clk 0:00:46]}  c4 {[%clk 0:00:21]} 23. d4 {[%clk 0:00:40]}  c3 {[%clk 0:00:21]} 24. b4 {[%clk 0:00:39]}  Nb6 {[%clk 0:00:09]} 25. Qf2 {[%clk 0:00:36]}  Nc4 {[%clk 0:00:09]} 26. Be2 {[%clk 0:00:36]}  f5 {[%clk 0:00:06]} 27. exf6 {[%clk 0:00:33]}  Bxf6 {[%clk 0:00:06]} 28. Bd3 {[%clk 0:00:34]}  Kf7 {[%clk 0:00:03]} 29. Qe2 {[%clk 0:00:31]}  Rh8 {[%clk 0:00:03]} 30. Be3 {[%clk 0:00:11]}  Qb6 {[%clk 0:00:02]} 31. Bf2 {[%clk 0:00:06]}  Bxd4 {[%clk 0:00:02]} 32. Bxd4 {[%clk 0:00:04]}  Qxd4 {[%clk 0:00:03]} 33. Rae1 {[%clk 0:00:05]}  Qf6 {[%clk 0:00:03]} 34. Qg4 {[%clk 0:00:02]}  d4 {[%clk 0:00:03]} 35. f5 {[%clk 0:00:02]}  gxf5 {[%clk 0:00:00]} 36. Bxf5 {[%clk 0:00:02]} 1-0


[Site "https://www.chess.com"]

[Event "Titled Tuesday Blitz August 22 Early 2023"]
[White "Chigaev, Maksim"]
[Black "Terry, Renato"]
[WhiteFideId "4108116"]
[BlackFideId "3803457"]
[WhiteElo "2935"]
[BlackElo "2968"]
[Result "1-0"]
[Round "10"]
[TimeControl "180+1"]
[Date "2023.08.22"]
[WhiteClock "0:00:22"]
[BlackClock "0:00:05"]
[Board "4"]

1. c4 {[%clk 0:03:00]}  b6 {[%clk 0:02:58]} 2. Nf3 {[%clk 0:02:59]}  Bb7 {[%clk 0:02:58]} 3. e3 {[%clk 0:02:58]}  c5 {[%clk 0:02:58]} 4. Nc3 {[%clk 0:02:55]}  g6 {[%clk 0:02:58]} 5. g3 {[%clk 0:02:54]}  Bg7 {[%clk 0:02:58]} 6. Bg2 {[%clk 0:02:55]}  Nf6 {[%clk 0:02:57]} 7. O-O {[%clk 0:02:55]}  O-O {[%clk 0:02:57]} 8. Re1 {[%clk 0:02:56]}  d5 {[%clk 0:02:48]} 9. cxd5 {[%clk 0:02:53]}  Nxd5 {[%clk 0:02:48]} 10. d4 {[%clk 0:02:48]}  cxd4 {[%clk 0:02:41]} 11. exd4 {[%clk 0:02:49]}  e6 {[%clk 0:02:15]} 12. Bg5 {[%clk 0:02:45]}  Nxc3 {[%clk 0:02:10]} 13. bxc3 {[%clk 0:02:44]}  Qd5 {[%clk 0:02:10]} 14. h4 {[%clk 0:02:14]}  Nd7 {[%clk 0:01:59]} 15. h5 {[%clk 0:01:57]}  Qa5 {[%clk 0:01:58]} 16. h6 {[%clk 0:01:55]}  Bh8 {[%clk 0:01:45]} 17. Be7 {[%clk 0:01:49]}  Rfe8 {[%clk 0:01:42]} 18. Bb4 {[%clk 0:01:49]}  Qh5 {[%clk 0:01:38]} 19. Ne5 {[%clk 0:01:33]}  Qxd1 {[%clk 0:01:39]} 20. Raxd1 {[%clk 0:01:33]}  Bxg2 {[%clk 0:01:40]} 21. Kxg2 {[%clk 0:01:32]}  Nf6 {[%clk 0:01:10]} 22. c4 {[%clk 0:01:32]}  Rac8 {[%clk 0:01:10]} 23. d5 {[%clk 0:01:17]}  Nh5 {[%clk 0:00:19]} 24. Nc6 {[%clk 0:01:14]}  Bf6 {[%clk 0:00:18]} 25. Bd6 {[%clk 0:00:55]}  Bg5 {[%clk 0:00:15]} 26. f4 {[%clk 0:00:45]}  Bxh6 {[%clk 0:00:15]} 27. Ne7+ {[%clk 0:00:45]}  Kg7 {[%clk 0:00:16]} 28. Nxc8 {[%clk 0:00:44]}  Rxc8 {[%clk 0:00:17]} 29. dxe6 {[%clk 0:00:42]}  fxe6 {[%clk 0:00:18]} 30. Rxe6 {[%clk 0:00:34]}  Rxc4 {[%clk 0:00:18]} 31. Re7+ {[%clk 0:00:35]}  Kg8 {[%clk 0:00:18]} 32. Rxa7 {[%clk 0:00:30]}  Rc2+ {[%clk 0:00:16]} 33. Kh3 {[%clk 0:00:28]}  Rc3 {[%clk 0:00:11]} 34. Be5 {[%clk 0:00:23]}  Rxg3+ {[%clk 0:00:11]} 35. Kh2 {[%clk 0:00:23]}  Bf8 {[%clk 0:00:06]} 36. Rd8 {[%clk 0:00:22]}  Rd3 {[%clk 0:00:05]} 37. Rxd3 {[%clk 0:00:22]} 1-0


[Site "https://www.chess.com"]

[Event "Titled Tuesday Blitz August 22 Early 2023"]
[White "CrazyAdvenTures"]
[Black "Demchenko, Anton"]
[BlackFideId "4160258"]
[WhiteElo "2717"]
[BlackElo "2958"]
[Result "0-1"]
[Round "10"]
[TimeControl "180+1"]
[Date "2023.08.22"]
[WhiteClock "0:00:00"]
[BlackClock "0:00:16"]
[Board "5"]

1. e4 {[%clk 0:03:00]}  e5 {[%clk 0:02:59]} 2. Nc3 {[%clk 0:02:58]}  Nf6 {[%clk 0:02:59]} 3. Bc4 {[%clk 0:02:58]}  Nc6 {[%clk 0:02:57]} 4. d3 {[%clk 0:02:58]}  Bb4 {[%clk 0:02:51]} 5. Nf3 {[%clk 0:02:50]}  d6 {[%clk 0:02:49]} 6. h3 {[%clk 0:02:46]}  h6 {[%clk 0:02:49]} 7. O-O {[%clk 0:02:46]}  Bxc3 {[%clk 0:02:49]} 8. bxc3 {[%clk 0:02:47]}  g5 {[%clk 0:02:41]} 9. Nh2 {[%clk 0:02:23]}  Qe7 {[%clk 0:02:33]} 10. Re1 {[%clk 0:02:02]}  Bd7 {[%clk 0:02:33]} 11. d4 {[%clk 0:02:00]}  b6 {[%clk 0:02:18]} 12. a4 {[%clk 0:01:45]}  Na5 {[%clk 0:02:07]} 13. Ba2 {[%clk 0:01:40]}  c5 {[%clk 0:02:01]} 14. Ba3 {[%clk 0:01:18]}  Kf8 {[%clk 0:01:55]} 15. Qf3 {[%clk 0:00:56]}  h5 {[%clk 0:01:45]} 16. Qg3 {[%clk 0:00:48]}  Rg8 {[%clk 0:01:45]} 17. Rad1 {[%clk 0:00:38]}  h4 {[%clk 0:01:03]} 18. Qe3 {[%clk 0:00:34]}  Bxa4 {[%clk 0:01:02]} 19. Nf3 {[%clk 0:00:23]}  Nh5 {[%clk 0:00:45]} 20. dxe5 {[%clk 0:00:20]}  dxe5 {[%clk 0:00:46]} 21. Rd5 {[%clk 0:00:19]}  Nc6 {[%clk 0:00:40]} 22. c4 {[%clk 0:00:13]}  Nf4 {[%clk 0:00:37]} 23. Bb2 {[%clk 0:00:11]}  f6 {[%clk 0:00:35]} 24. g3 {[%clk 0:00:09]}  hxg3 {[%clk 0:00:24]} 25. fxg3 {[%clk 0:00:10]}  g4 {[%clk 0:00:23]} 26. gxf4 {[%clk 0:00:05]}  gxf3+ {[%clk 0:00:23]} 27. Kh1 {[%clk 0:00:06]}  Rg3 {[%clk 0:00:19]} 28. Kh2 {[%clk 0:00:03]}  Qg7 {[%clk 0:00:16]} 29. Rg1 {[%clk 0:00:03]}  Rg2+ {[%clk 0:00:17]} 30. Kh1 {[%clk 0:00:00]}  Qg3 {[%clk 0:00:16]} 0-1


[Site "https://www.chess.com"]

[Event "Titled Tuesday Blitz August 22 Early 2023"]
[White "Cordova, Emilio"]
[Black "Bluebaum, Matthias"]
[WhiteFideId "3801497"]
[BlackFideId "24651516"]
[WhiteElo "2884"]
[BlackElo "3018"]
[Result "0-1"]
[Round "10"]
[TimeControl "180+1"]
[Date "2023.08.22"]
[WhiteClock "0:00:19"]
[BlackClock "0:01:33"]
[Board "8"]

1. Nf3 {[%clk 0:03:00]}  d5 {[%clk 0:03:00]} 2. c4 {[%clk 0:03:00]}  d4 {[%clk 0:03:00]} 3. e3 {[%clk 0:02:59]}  c5 {[%clk 0:03:01]} 4. b4 {[%clk 0:02:59]}  Nf6 {[%clk 0:02:59]} 5. Bb2 {[%clk 0:02:59]}  dxe3 {[%clk 0:02:58]} 6. fxe3 {[%clk 0:02:59]}  cxb4 {[%clk 0:02:59]} 7. a3 {[%clk 0:02:59]}  bxa3 {[%clk 0:02:54]} 8. Nxa3 {[%clk 0:03:00]}  g6 {[%clk 0:02:53]} 9. Be2 {[%clk 0:02:59]}  Bg7 {[%clk 0:02:54]} 10. O-O {[%clk 0:02:59]}  O-O {[%clk 0:02:55]} 11. Qe1 {[%clk 0:02:59]}  Nc6 {[%clk 0:02:54]} 12. Qh4 {[%clk 0:02:59]}  h6 {[%clk 0:02:47]} 13. d4 {[%clk 0:02:58]}  Bf5 {[%clk 0:02:24]} 14. d5 {[%clk 0:02:55]}  Nb4 {[%clk 0:02:25]} 15. Nd4 {[%clk 0:02:35]}  Bd3 {[%clk 0:02:24]} 16. Rae1 {[%clk 0:02:30]}  Bxe2 {[%clk 0:02:16]} 17. Rxe2 {[%clk 0:02:31]}  Nd3 {[%clk 0:02:17]} 18. Ba1 {[%clk 0:02:26]}  Rc8 {[%clk 0:02:16]} 19. Ndc2 {[%clk 0:02:03]}  Nc5 {[%clk 0:02:08]} 20. e4 {[%clk 0:02:01]}  e5 {[%clk 0:01:43]} 21. Bxe5 {[%clk 0:01:59]}  Nfxe4 {[%clk 0:01:43]} 22. Qxd8 {[%clk 0:01:41]}  Rfxd8 {[%clk 0:01:43]} 23. Bxg7 {[%clk 0:01:41]}  Kxg7 {[%clk 0:01:44]} 24. Nb5 {[%clk 0:01:39]}  a6 {[%clk 0:01:43]} 25. Nbd4 {[%clk 0:01:39]}  Re8 {[%clk 0:01:41]} 26. g4 {[%clk 0:01:38]}  Nd6 {[%clk 0:01:41]} 27. Ref2 {[%clk 0:01:34]}  Nd7 {[%clk 0:01:37]} 28. Na3 {[%clk 0:01:03]}  Re4 {[%clk 0:01:37]} 29. Rf4 {[%clk 0:01:02]}  Rxf4 {[%clk 0:01:37]} 30. Rxf4 {[%clk 0:01:03]}  Ne5 {[%clk 0:01:38]} 31. Nb3 {[%clk 0:00:47]}  Nexc4 {[%clk 0:01:38]} 32. Nc2 {[%clk 0:00:35]}  Nd2 {[%clk 0:01:36]} 33. Ncd4 {[%clk 0:00:32]}  Nxb3 {[%clk 0:01:35]} 34. Nxb3 {[%clk 0:00:19]}  Rc4 {[%clk 0:01:33]} 0-1


[Site "https://www.chess.com"]

[Event "Titled Tuesday Blitz August 22 Early 2023"]
[White "Xiong, Jeffery"]
[Black "Jones, Gawain C B"]
[WhiteFideId "2047640"]
[BlackFideId "409561"]
[WhiteElo "3000"]
[BlackElo "2879"]
[Result "0-1"]
[Round "10"]
[TimeControl "180+1"]
[Date "2023.08.22"]
[WhiteClock "0:00:00"]
[BlackClock "0:01:31"]
[Board "9"]

1. d4 {[%clk 0:03:00]}  Nf6 {[%clk 0:02:56]} 2. Nf3 {[%clk 0:03:01]}  g6 {[%clk 0:02:56]} 3. Nc3 {[%clk 0:03:02]}  d5 {[%clk 0:02:56]} 4. Bf4 {[%clk 0:03:02]}  Bg7 {[%clk 0:02:57]} 5. Nb5 {[%clk 0:03:02]}  Na6 {[%clk 0:02:57]} 6. h3 {[%clk 0:03:02]}  O-O {[%clk 0:02:57]} 7. e3 {[%clk 0:03:02]}  Ne4 {[%clk 0:02:57]} 8. c3 {[%clk 0:03:02]}  c6 {[%clk 0:02:56]} 9. Na3 {[%clk 0:03:02]}  Qb6 {[%clk 0:02:55]} 10. Qb3 {[%clk 0:03:02]}  f6 {[%clk 0:02:52]} 11. Be2 {[%clk 0:03:02]}  e5 {[%clk 0:02:45]} 12. Bh2 {[%clk 0:03:02]}  exd4 {[%clk 0:02:36]} 13. exd4 {[%clk 0:02:48]}  Re8 {[%clk 0:02:35]} 14. Nc2 {[%clk 0:02:35]}  Bh6 {[%clk 0:02:28]} 15. Qxb6 {[%clk 0:02:04]}  axb6 {[%clk 0:02:27]} 16. Rf1 {[%clk 0:02:05]}  Bd7 {[%clk 0:02:05]} 17. Kd1 {[%clk 0:02:00]}  Re7 {[%clk 0:02:06]} 18. Bd3 {[%clk 0:01:12]}  Bf5 {[%clk 0:02:00]} 19. Bxe4 {[%clk 0:01:09]}  Bxe4 {[%clk 0:01:57]} 20. Re1 {[%clk 0:01:01]}  Rae8 {[%clk 0:01:55]} 21. a4 {[%clk 0:00:28]}  Kf7 {[%clk 0:01:55]} 22. Bd6 {[%clk 0:00:17]}  Bxc2+ {[%clk 0:01:49]} 23. Kxc2 {[%clk 0:00:17]}  Re2+ {[%clk 0:01:49]} 24. Rxe2 {[%clk 0:00:10]}  Rxe2+ {[%clk 0:01:49]} 25. Kb3 {[%clk 0:00:11]}  Rxf2 {[%clk 0:01:45]} 26. Rg1 {[%clk 0:00:12]}  Bf8 {[%clk 0:01:40]} 27. Bf4 {[%clk 0:00:09]}  g5 {[%clk 0:01:38]} 28. Bg3 {[%clk 0:00:05]}  Re2 {[%clk 0:01:38]} 29. Ne1 {[%clk 0:00:02]}  c5 {[%clk 0:01:36]} 30. Rf1 {[%clk 0:00:00]}  Ke6 {[%clk 0:01:31]} 0-1


[Site "https://www.chess.com"]

[Event "Titled Tuesday Blitz August 22 Early 2023"]
[White "Andreikin, Dmitry"]
[Black "Ibrahimli, Murad"]
[WhiteFideId "4158814"]
[BlackFideId "13410229"]
[WhiteElo "2999"]
[BlackElo "2877"]
[Result "1/2-1/2"]
[Round "10"]
[TimeControl "180+1"]
[Date "2023.08.22"]
[WhiteClock "0:00:05"]
[BlackClock "0:00:08"]
[Board "10"]

1. d4 {[%clk 0:03:00]}  Nf6 {[%clk 0:02:59]} 2. c4 {[%clk 0:02:58]}  e6 {[%clk 0:02:59]} 3. Nf3 {[%clk 0:02:57]}  d5 {[%clk 0:02:58]} 4. Bg5 {[%clk 0:02:57]}  dxc4 {[%clk 0:02:58]} 5. e4 {[%clk 0:02:56]}  h6 {[%clk 0:02:55]} 6. Bxf6 {[%clk 0:02:56]}  Qxf6 {[%clk 0:02:56]} 7. Bxc4 {[%clk 0:02:56]}  c5 {[%clk 0:02:56]} 8. e5 {[%clk 0:02:49]}  Qd8 {[%clk 0:02:55]} 9. d5 {[%clk 0:02:50]}  exd5 {[%clk 0:02:54]} 10. Bxd5 {[%clk 0:02:48]}  Be7 {[%clk 0:02:51]} 11. Nc3 {[%clk 0:02:45]}  O-O {[%clk 0:02:48]} 12. Qb3 {[%clk 0:02:31]}  Nc6 {[%clk 0:02:44]} 13. O-O-O {[%clk 0:02:29]}  Qb6 {[%clk 0:02:44]} 14. Rhe1 {[%clk 0:02:15]}  Qxb3 {[%clk 0:02:39]} 15. Bxb3 {[%clk 0:02:12]}  Bg4 {[%clk 0:02:09]} 16. Re4 {[%clk 0:01:40]}  Bf5 {[%clk 0:02:07]} 17. Rf4 {[%clk 0:01:39]}  g6 {[%clk 0:01:54]} 18. Nd5 {[%clk 0:01:27]}  Rad8 {[%clk 0:01:53]} 19. h4 {[%clk 0:01:14]}  Kg7 {[%clk 0:01:18]} 20. Ne3 {[%clk 0:00:50]}  Rxd1+ {[%clk 0:01:14]} 21. Kxd1 {[%clk 0:00:51]}  Bc8 {[%clk 0:01:04]} 22. Ke2 {[%clk 0:00:44]}  b5 {[%clk 0:01:02]} 23. Bd5 {[%clk 0:00:42]}  Nb4 {[%clk 0:01:01]} 24. a3 {[%clk 0:00:42]}  Nxd5 {[%clk 0:01:01]} 25. Nxd5 {[%clk 0:00:43]}  Bd8 {[%clk 0:01:02]} 26. Nf6 {[%clk 0:00:38]}  Be6 {[%clk 0:00:58]} 27. g4 {[%clk 0:00:32]}  Be7 {[%clk 0:00:55]} 28. g5 {[%clk 0:00:32]}  hxg5 {[%clk 0:00:50]} 29. Nxg5 {[%clk 0:00:31]}  Bc4+ {[%clk 0:00:44]} 30. Ke1 {[%clk 0:00:25]}  Rh8 {[%clk 0:00:39]} 31. Nfe4 {[%clk 0:00:24]}  Bxg5 {[%clk 0:00:31]} 32. Nxg5 {[%clk 0:00:13]}  Re8 {[%clk 0:00:31]} 33. Re4 {[%clk 0:00:13]}  Bd5 {[%clk 0:00:32]} 34. Re3 {[%clk 0:00:13]}  c4 {[%clk 0:00:30]} 35. f4 {[%clk 0:00:13]}  Rh8 {[%clk 0:00:30]} 36. Rh3 {[%clk 0:00:11]}  a5 {[%clk 0:00:30]} 37. Kd2 {[%clk 0:00:10]}  b4 {[%clk 0:00:31]} 38. axb4 {[%clk 0:00:10]}  axb4 {[%clk 0:00:32]} 39. Rh2 {[%clk 0:00:08]}  f6 {[%clk 0:00:31]} 40. exf6+ {[%clk 0:00:07]}  Kxf6 {[%clk 0:00:32]} 41. Ke3 {[%clk 0:00:08]}  Kf5 {[%clk 0:00:30]} 42. Kd4 {[%clk 0:00:08]}  Rd8 {[%clk 0:00:30]} 43. Kc5 {[%clk 0:00:08]}  b3 {[%clk 0:00:28]} 44. Rd2 {[%clk 0:00:08]}  c3 {[%clk 0:00:28]} 45. bxc3 {[%clk 0:00:08]}  Rc8+ {[%clk 0:00:28]} 46. Kb4 {[%clk 0:00:06]}  Kxf4 {[%clk 0:00:21]} 47. Ka3 {[%clk 0:00:04]}  Ra8+ {[%clk 0:00:20]} 48. Kb2 {[%clk 0:00:04]}  Ke5 {[%clk 0:00:17]} 49. Re2+ {[%clk 0:00:04]}  Kd6 {[%clk 0:00:18]} 50. Ne4+ {[%clk 0:00:04]}  Kc6 {[%clk 0:00:18]} 51. Nd2 {[%clk 0:00:03]}  Ra2+ {[%clk 0:00:18]} 52. Kb1 {[%clk 0:00:03]}  Rc2 {[%clk 0:00:14]} 53. Rf2 {[%clk 0:00:04]}  Rxc3 {[%clk 0:00:13]} 54. Rf6+ {[%clk 0:00:02]}  Kc5 {[%clk 0:00:13]} 55. Rxg6 {[%clk 0:00:03]}  Rd3 {[%clk 0:00:10]} 56. Kc1 {[%clk 0:00:02]}  Kb4 {[%clk 0:00:09]} 57. Rg7 {[%clk 0:00:01]}  Rc3+ {[%clk 0:00:07]} 58. Kb1 {[%clk 0:00:02]}  Rd3 {[%clk 0:00:07]} 59. Nxb3 {[%clk 0:00:02]}  Rxb3+ {[%clk 0:00:07]} 60. Kc1 {[%clk 0:00:02]}  Rh3 {[%clk 0:00:07]} 61. Kd2 {[%clk 0:00:02]}  Rxh4 {[%clk 0:00:07]} 62. Ke3 {[%clk 0:00:02]}  Re4+ {[%clk 0:00:07]} 63. Kd3 {[%clk 0:00:02]}  Kc5 {[%clk 0:00:07]} 64. Rh7 {[%clk 0:00:01]}  Ra4 {[%clk 0:00:07]} 65. Kc3 {[%clk 0:00:02]}  Ra3+ {[%clk 0:00:07]} 66. Kd2 {[%clk 0:00:02]}  Kd4 {[%clk 0:00:07]} 67. Rd7 {[%clk 0:00:03]}  Ra2+ {[%clk 0:00:07]} 68. Kd1 {[%clk 0:00:03]}  Ke4 {[%clk 0:00:07]} 69. Kc1 {[%clk 0:00:04]}  Kd4 {[%clk 0:00:06]} 70. Kd1 {[%clk 0:00:03]}  Rg2 {[%clk 0:00:07]} 71. Rd8 {[%clk 0:00:03]}  Ke4 {[%clk 0:00:07]} 72. Kc1 {[%clk 0:00:03]}  Bc4 {[%clk 0:00:07]} 73. Rd2 {[%clk 0:00:04]}  Rg1+ {[%clk 0:00:07]} 74. Kc2 {[%clk 0:00:04]}  Ke3 {[%clk 0:00:07]} 75. Rh2 {[%clk 0:00:04]}  Bd3+ {[%clk 0:00:06]} 76. Kc3 {[%clk 0:00:04]}  Rc1+ {[%clk 0:00:06]} 77. Kb2 {[%clk 0:00:05]}  Rb1+ {[%clk 0:00:07]} 78. Kc3 {[%clk 0:00:05]}  Be4 {[%clk 0:00:08]} 79. Rh3+ {[%clk 0:00:05]}  Bf3 {[%clk 0:00:08]} 80. Rh4 {[%clk 0:00:05]}  Rc1+ {[%clk 0:00:09]} 81. Kb4 {[%clk 0:00:05]}  Rc8 {[%clk 0:00:10]} 82. Ka4 {[%clk 0:00:05]}  Be4 {[%clk 0:00:10]} 83. Kb4 {[%clk 0:00:05]}  Kd4 {[%clk 0:00:11]} 84. Ka4 {[%clk 0:00:06]}  Ra8+ {[%clk 0:00:11]} 85. Kb4 {[%clk 0:00:06]}  Rb8+ {[%clk 0:00:12]} 86. Ka4 {[%clk 0:00:06]}  Rb1 {[%clk 0:00:10]} 87. Rg4 {[%clk 0:00:06]}  Kd5 {[%clk 0:00:10]} 88. Ka3 {[%clk 0:00:05]}  Bd3 {[%clk 0:00:10]} 89. Rb4 {[%clk 0:00:05]}  Ra1+ {[%clk 0:00:10]} 90. Kb2 {[%clk 0:00:05]}  Rb1+ {[%clk 0:00:10]} 91. Kc3 {[%clk 0:00:05]}  Rxb4 {[%clk 0:00:08]} 92. Kxb4 {[%clk 0:00:05]} 1/2-1/2


[Site "https://www.chess.com"]

[Event "Titled Tuesday Blitz August 22 Early 2023"]
[White "Dardha, Daniel"]
[Black "Pakleza, Zbigniew"]
[WhiteFideId "240990"]
[BlackFideId "1119290"]
[WhiteElo "2949"]
[BlackElo "2852"]
[Result "1-0"]
[Round "10"]
[TimeControl "180+1"]
[Date "2023.08.22"]
[WhiteClock "0:00:09"]
[BlackClock "0:00:00"]
[Board "12"]

1. e4 {[%clk 0:03:00]}  d6 {[%clk 0:03:00]} 2. d4 {[%clk 0:03:00]}  Nf6 {[%clk 0:03:01]} 3. Nc3 {[%clk 0:02:59]}  c6 {[%clk 0:03:01]} 4. Nf3 {[%clk 0:02:59]}  Bg4 {[%clk 0:03:01]} 5. h3 {[%clk 0:02:57]}  Bh5 {[%clk 0:03:02]} 6. g4 {[%clk 0:02:58]}  Bg6 {[%clk 0:03:01]} 7. Qe2 {[%clk 0:02:57]}  e6 {[%clk 0:03:01]} 8. h4 {[%clk 0:02:53]}  h5 {[%clk 0:03:02]} 9. g5 {[%clk 0:02:51]}  Nfd7 {[%clk 0:03:02]} 10. Bh3 {[%clk 0:02:51]}  Be7 {[%clk 0:02:59]} 11. Be3 {[%clk 0:02:36]}  d5 {[%clk 0:02:56]} 12. Nd2 {[%clk 0:02:22]}  Bb4 {[%clk 0:02:50]} 13. f3 {[%clk 0:02:19]}  Qa5 {[%clk 0:02:30]} 14. O-O {[%clk 0:02:15]}  O-O {[%clk 0:02:27]} 15. Nd1 {[%clk 0:01:51]}  Qc7 {[%clk 0:02:03]} 16. c3 {[%clk 0:01:48]}  Bd6 {[%clk 0:01:56]} 17. e5 {[%clk 0:01:38]}  Be7 {[%clk 0:01:44]} 18. f4 {[%clk 0:01:37]}  c5 {[%clk 0:01:45]} 19. f5 {[%clk 0:01:34]}  exf5 {[%clk 0:01:38]} 20. Nf2 {[%clk 0:01:17]}  cxd4 {[%clk 0:01:27]} 21. cxd4 {[%clk 0:01:16]}  f4 {[%clk 0:01:25]} 22. Bxf4 {[%clk 0:01:15]}  Nc6 {[%clk 0:01:25]} 23. Nf3 {[%clk 0:01:05]}  Nb6 {[%clk 0:01:11]} 24. Bg3 {[%clk 0:00:55]}  Nc4 {[%clk 0:00:57]} 25. Nd3 {[%clk 0:00:54]}  Qb6 {[%clk 0:00:56]} 26. Bf2 {[%clk 0:00:53]}  Be4 {[%clk 0:00:44]} 27. Nf4 {[%clk 0:00:45]}  g6 {[%clk 0:00:44]} 28. b3 {[%clk 0:00:26]}  Na3 {[%clk 0:00:44]} 29. Rad1 {[%clk 0:00:19]}  Nb4 {[%clk 0:00:37]} 30. Nd2 {[%clk 0:00:18]}  Bc2 {[%clk 0:00:29]} 31. Rde1 {[%clk 0:00:19]}  Rad8 {[%clk 0:00:20]} 32. e6 {[%clk 0:00:18]}  f6 {[%clk 0:00:15]} 33. Be3 {[%clk 0:00:11]}  fxg5 {[%clk 0:00:11]} 34. hxg5 {[%clk 0:00:12]}  Bxg5 {[%clk 0:00:11]} 35. Qg2 {[%clk 0:00:12]}  Bxf4 {[%clk 0:00:08]} 36. Bxf4 {[%clk 0:00:11]}  Qxd4+ {[%clk 0:00:07]} 37. Be3 {[%clk 0:00:11]}  Rxf1+ {[%clk 0:00:03]} 38. Nxf1 {[%clk 0:00:12]}  Qg7 {[%clk 0:00:03]} 39. Bc5 {[%clk 0:00:11]}  a5 {[%clk 0:00:02]} 40. e7 {[%clk 0:00:11]}  Re8 {[%clk 0:00:02]} 41. Bd7 {[%clk 0:00:12]}  Qc3 {[%clk 0:00:02]} 42. Bxe8 {[%clk 0:00:10]}  Qxc5+ {[%clk 0:00:02]} 43. Kh1 {[%clk 0:00:08]}  Be4 {[%clk 0:00:02]} 44. Rxe4 {[%clk 0:00:08]}  dxe4 {[%clk 0:00:01]} 45. Qxg6+ {[%clk 0:00:08]}  Kh8 {[%clk 0:00:02]} 46. Qf6+ {[%clk 0:00:08]}  Kh7 {[%clk 0:00:00]} 47. Bg6+ {[%clk 0:00:09]} 1-0


[Site "https://www.chess.com"]

[Event "Titled Tuesday Blitz August 22 Early 2023"]
[White "Henriquez Villagra, Cristobal"]
[Black "Hulka, Valentyn"]
[WhiteFideId "3409350"]
[BlackFideId "34107061"]
[WhiteElo "2933"]
[BlackElo "2758"]
[Result "1-0"]
[Round "10"]
[TimeControl "180+1"]
[Date "2023.08.22"]
[WhiteClock "0:00:13"]
[BlackClock "0:00:01"]
[Board "14"]

1. e4 {[%clk 0:03:00]}  c5 {[%clk 0:02:59]} 2. Nf3 {[%clk 0:03:00]}  Nc6 {[%clk 0:02:59]} 3. Nc3 {[%clk 0:02:57]}  Nf6 {[%clk 0:02:59]} 4. g3 {[%clk 0:02:49]}  d5 {[%clk 0:02:57]} 5. exd5 {[%clk 0:02:50]}  Nxd5 {[%clk 0:02:58]} 6. Bg2 {[%clk 0:02:50]}  g6 {[%clk 0:02:58]} 7. O-O {[%clk 0:02:50]}  Bg7 {[%clk 0:02:58]} 8. Re1 {[%clk 0:02:48]}  Nxc3 {[%clk 0:02:57]} 9. dxc3 {[%clk 0:02:45]}  Qxd1 {[%clk 0:02:43]} 10. Rxd1 {[%clk 0:02:46]}  Bf5 {[%clk 0:02:44]} 11. Ne1 {[%clk 0:02:33]}  Rc8 {[%clk 0:02:37]} 12. Nd3 {[%clk 0:02:09]}  b6 {[%clk 0:02:35]} 13. h3 {[%clk 0:01:54]}  h5 {[%clk 0:02:28]} 14. Bg5 {[%clk 0:01:43]}  O-O {[%clk 0:02:27]} 15. Rd2 {[%clk 0:01:34]}  Rfd8 {[%clk 0:02:19]} 16. Rad1 {[%clk 0:01:32]}  f6 {[%clk 0:01:53]} 17. Be3 {[%clk 0:01:29]}  Kf7 {[%clk 0:01:41]} 18. Bxc6 {[%clk 0:01:26]}  Rxc6 {[%clk 0:01:38]} 19. Ne5+ {[%clk 0:01:26]}  fxe5 {[%clk 0:01:39]} 20. Rxd8 {[%clk 0:01:26]}  Bxh3 {[%clk 0:01:39]} 21. a4 {[%clk 0:01:18]}  Bg4 {[%clk 0:01:30]} 22. R1d2 {[%clk 0:01:15]}  Bf3 {[%clk 0:01:19]} 23. R8d7 {[%clk 0:01:14]}  Bf6 {[%clk 0:01:13]} 24. Rxa7 {[%clk 0:01:09]}  Rc8 {[%clk 0:01:13]} 25. Rad7 {[%clk 0:01:04]}  Rh8 {[%clk 0:01:07]} 26. Rd8 {[%clk 0:01:05]}  Rh7 {[%clk 0:01:08]} 27. b4 {[%clk 0:00:50]}  h4 {[%clk 0:00:51]} 28. g4 {[%clk 0:00:50]}  h3 {[%clk 0:00:51]} 29. Kh2 {[%clk 0:00:48]}  e4 {[%clk 0:00:39]} 30. Bf4 {[%clk 0:00:48]}  Bxc3 {[%clk 0:00:38]} 31. bxc5 {[%clk 0:00:45]}  Bxd2 {[%clk 0:00:35]} 32. Bxd2 {[%clk 0:00:38]}  bxc5 {[%clk 0:00:35]} 33. a5 {[%clk 0:00:35]}  Rh4 {[%clk 0:00:15]} 34. a6 {[%clk 0:00:32]}  Rxg4 {[%clk 0:00:15]} 35. a7 {[%clk 0:00:32]}  e3 {[%clk 0:00:12]} 36. Bxe3 {[%clk 0:00:32]}  Ra4 {[%clk 0:00:12]} 37. Bxc5 {[%clk 0:00:30]}  Bg2 {[%clk 0:00:12]} 38. Be3 {[%clk 0:00:23]}  Ra2 {[%clk 0:00:10]} 39. Rc8 {[%clk 0:00:22]}  Ke6 {[%clk 0:00:09]} 40. c3 {[%clk 0:00:19]}  Kd7 {[%clk 0:00:09]} 41. Rc4 {[%clk 0:00:18]}  e5 {[%clk 0:00:08]} 42. Rg4 {[%clk 0:00:18]}  Ra1 {[%clk 0:00:06]} 43. Rxg6 {[%clk 0:00:15]}  Bd5 {[%clk 0:00:04]} 44. Rh6 {[%clk 0:00:12]}  Rh1+ {[%clk 0:00:04]} 45. Kg3 {[%clk 0:00:13]}  Rg1+ {[%clk 0:00:05]} 46. Kxh3 {[%clk 0:00:12]}  Rh1+ {[%clk 0:00:02]} 47. Kg4 {[%clk 0:00:13]}  Rxh6 {[%clk 0:00:03]} 48. Bxh6 {[%clk 0:00:14]}  Kc6 {[%clk 0:00:01]} 49. a8=Q+ {[%clk 0:00:13]} 1-0


[Site "https://www.chess.com"]